Workbook

Sheet 총괄표
H1: (단위:원)
A2: 세 입 예 산 | E2: 세 출 예 산
A3: 관 별 | B3: 2012 예산 | C3: 2011 예산 | D3: 증감률(%) | E3: 관 별 | F3: 2012 예산 | G3: 2011 예산 | H3: 증감률(%)
A4: 1. 이전수입 | B4: ='2012학년도 세입예산 명세서'!G5 -> 493,000,000 | C4: ='2012학년도 세입예산 명세서'!H5 -> 354,250,000 | D4: =B4/C4 -> 139.17% | E4: 1. 인적자원운영 | F4: ='2012학년도 세출예산 명세서'!G5 -> 4,483,087,000 | G4: ='2012학년도 세출예산 명세서'!H5 -> 4,316,951,000 | H4: =F4/G4 -> 103.85%
A5: 2. 자체수입 | B5: ='2012학년도 세입예산 명세서'!G24 -> 14,015,275,000 | C5: ='2012학년도 세입예산 명세서'!H24 -> 14,439,060,000 | D5: =B5/C5 -> 97.07% | E5: 2. 학생복지 등 | F5: ='2012학년도 세출예산 명세서'!G108 -> 6,933,460,000 | G5: ='2012학년도 세출예산 명세서'!H108 -> 7,220,475,000 | H5: 96.02%
A6: 3. 전년도이월금 | B6: ='2012학년도 세입예산 명세서'!G128 -> 500,000,000 | C6: ='2012학년도 세입예산 명세서'!H128 -> 724,300,000 | D6: =B6/C6 -> 69.03% | E6: 3. 기본적교육활동 | F6: ='2012학년도 세출예산 명세서'!G209 -> 629,103,000 | G6: ='2012학년도 세출예산 명세서'!H209 -> 793,690,000 | H6: 79.26%
B7: 0 | C7: =[1]세입예산!D35 -> 0 | D7: =B7-C7 -> 0.00% | E7: 4. 선택적교육활동 | F7: ='2012학년도 세출예산 명세서'!G271 -> 1,431,280,000 | G7: ='2012학년도 세출예산 명세서'!H271 -> 1,331,972,000 | H7: 107.46%
B8: 0 | C8: =[1]세입예산!D38 -> 0 | D8: 0.00% | E8: 5. 교육활동지원 | F8: ='2012학년도 세출예산 명세서'!G320 -> 518,357,000 | G8: ='2012학년도 세출예산 명세서'!H320 -> 840,624,000 | H8: 61.66%
B9: 0 | C9: 0 | D9: 0.00% | E9: 6. 학교일반운영 | F9: ='2012학년도 세출예산 명세서'!G373 -> 775,988,000 | G9: ='2012학년도 세출예산 명세서'!H373 -> 833,898,000 | H9: 93.06%
B10: 0 | C10: 0 | D10: 0.00% | E10: 7. 학교시설확충 | F10: ='2012학년도 세출예산 명세서'!G432 -> 237,000,000 | G10: ='2012학년도 세출예산 명세서'!H432 -> 180,000,000 | H10: 0.00%
B11: 0 | C11: 0 | D11: 0.00% | E11: 8. 예비비 및 기타 | F11: 0 | G11: =[1]세출예산!D768 -> 0 | H11: =F11-G11 -> 0
B12: 0 | C12: 0 | D12: 0.00% | F12: 0 | G12: =[1]세출예산!D771 -> 0 | H12: =F12-G12 -> 0
B13: 0 | C13: 0 | D13: 0.00% | F13: 0 | G13: 0 | H13: =F13-G13 -> 0
A14: 세 입 합 계 | B14: =SUM(B4:B13) -> 15,008,275,000 | C14: =SUM(C4:C13) -> 15,517,610,000 | D14: =B14/C14 -> 96.72% | E14: 세 출 합 계 | F14: =SUM(F4:F13) -> 15,008,275,000 | G14: =SUM(G4:G13) -> 15,517,610,000 | H14: =F14/G14 -> 96.72%

Sheet 2012학년도 세입예산 명세서
J2: (단위:원)
A3: 과목 | F3: 산출내역 | G3: 2012학년도 예산 | H3: 2011학년도 예산 | I3: 증 △ 감 | J3: 적요
A4: 장 | B4: 관 | C4: 항 | D4: 목 | E4: 원가통계비목
A5: 이전수입 | G5: =G6+G18+G10 -> 493,000,000 | H5: =H6+H18+H10 -> 354,250,000 | I5: 138,750,000
B6: 지방자치단체이전수입 | G6: =G7 -> 10,000,000 | H6: =H7 -> 40,000,000 | I6: -30,000,000
C7: 비법정이전수입 | G7: =G8 -> 10,000,000 | H7: =H8 -> 40,000,000 | I7: -30,000,000
D8: 기초지방자치단체전입금 | G8: =SUM(G9:G9) -> 10,000,000 | H8: =SUM(H9:H9) -> 40,000,000 | I8: =SUM(I9:I9) -> -30,000,000
E9: 기타지방자치단체보조금 | F9: 학생 동아리 지원금 | G9: 10,000,000 | H9: =25000000+15000000 -> 40,000,000 | I9: =G9-H9 -> -30,000,000 | J9: 지자체 학생 동아리 지원금
B10: 교육비특별회계이전수입 | G10: =G11 -> 0 | H10: 58,750,000 | I10: -58,750,000
C11: 교육비특별회계전입금수입 | G11: 0 | H11: 58,750,000 | I11: -58,750,000
D12: 사립학교보조금수입 | G12: =SUM(G13:G17) -> 0 | H12: =SUM(H13:H17) -> 58,750,000 | I12: -58,750,000
E13: 목적사업비보조금 | F13: 도비특별장학생 장학금 | G13: 0 | H13: 150,000 | I13: =G13-H13 -> -150,000
E14: 목적사업비보조금 | F14: 자기주도학습전형 운영경비 | G14: 0 | H14: =35000000+21800000 -> 56,800,000 | I14: =G14-H14 -> -56,800,000
E15: 목적사업비보조금 | F15: 교원자격 연수비 | G15: 0 | H15: 1,100,000 | I15: -1,100,000
E16: 목적사업비보조금 | F16: 교원능력개발평가 운영비 | G16: 0 | H16: 200,000 | I16: -200,000
E17: 목적사업비보조금 | F17: 학교스포츠클럽대회운영비 | G17: 0 | H17: 500,000 | I17: -500,000
B18: 기타이전수입 | G18: =G19 -> 483,000,000 | H18: =H19 -> 255,500,000 | I18: 227,500,000
C19: 사학법인이전수입 | G19: =G22+G20 -> 483,000,000 | H19: =H22+H20 -> 255,500,000 | I19: =I22+I20 -> 227,500,000
D20: 법인법정부담금 | G20: =SUM(G21:G21) -> 311,032,000 | H20: =SUM(H21:H21) -> 245,500,000 | I20: =SUM(I21:I21) -> 65,532,000
E21: 법인법정부담금 | F21: 법인법정부담금 | G21: 311,032,000 | H21: =233000000+12500000 -> 245,500,000 | I21: =G21-H21 -> 65,532,000 | J21: 법정부담 전입금
D22: 법인이전수입 | G22: =G23 -> 171,968,000 | H22: =H23 -> 10,000,000 | I22: 161,968,000
E23: 법인이전수입 | F23: 학교운영비 | G23: =483000000-G21 -> 171,968,000 | H23: 10,000,000 | I23: =G23-H23 -> 161,968,000 | J23: 학교운영비
A24: 자체수입 | G24: =G25+G92+G105 -> 14,015,275,000 | H24: =H25+H92+H105 -> 14,439,060,000 | I24: -423,785,000
B25: 학부모부담수입 | G25: =G26+G43 -> 13,527,619,000 | H25: =H26+H43 -> 13,319,814,000 | I25: 207,805,000
C26: 등록금 | G26: =G27+G29+G35+G36+G41 -> 5,442,950,000 | H26: =H27+H29+H35+H36+H41 -> 5,452,410,000 | I26: -9,460,000
D27: 입학금 | G27: =G28 -> 11,550,000 | H27: =H28 -> 11,550,000 | I27: 0
E28: 입학금 | F28: 입학금 | G28: 11,550,000 | H28: 11,550,000 | I28: 0
D29: 수업료 | G29: =SUM(G30:G33) -> 3,652,400,000 | H29: =SUM(H30:H33) -> 4,385,400,000 | I29: -733,000,000
E30: 수업료 | F30: 1분기 수업료 | G30: 913,100,000 | H30: 1,096,350,000 | I30: -183,250,000
E31: 수업료 | F31: 2분기 수업료 | G31: 913,100,000 | H31: 1,096,350,000 | I31: -183,250,000
E32: 수업료 | F32: 3분기 수업료 | G32: 913,100,000 | H32: 1,096,350,000 | I32: -183,250,000
E33: 수업료 | F33: 4분기 수업료 | G33: 913,100,000 | H33: 1,096,350,000 | I33: -183,250,000
D34: 지난년도수업료 | G34: =G35 -> 0 | H34: =H35 -> 23,310,000 | I34: -23,310,000
E35: 지난년도수업료 | F35: 지난년도수업료 | G35: 0 | H35: 23,310,000 | I35: -23,310,000 | J35: 지난년도 이월수입
D36: 학교운영지원비 | G36: =SUM(G37:G40) -> 1,779,000,000 | H36: =SUM(H37:H40) -> 1,030,720,000 | I36: 748,280,000
E37: 학교운영지원비 | F37: 1분기 학교운영지원비 | G37: 444,750,000 | H37: 257,680,000 | I37: 187,070,000
E38: 학교운영지원비 | F38: 2분기 학교운영지원비 | G38: 444,750,000 | H38: 257,680,000 | I38: 187,070,000
E39: 학교운영지원비 | F39: 3분기 학교운영지원비 | G39: 444,750,000 | H39: 257,680,000 | I39: 187,070,000
E40: 학교운영지원비 | F40: 4분기 학교운영지원비 | G40: 444,750,000 | H40: 257,680,000 | I40: 187,070,000
D41: 학교운영지원비 | G41: =SUM(G42) -> 0 | H41: =SUM(H42) -> 1,430,000 | I41: -1,430,000
E42: 지난년도학교운영지원비 | F42: 지난년도학교운영지원비 | G42: 0 | H42: 1,430,000 | I42: -1,430,000 | J42: 지난년도 이월수입
C43: 수익자부담수입 | G43: =G44+G59+G64+G66+G70+G73+G75+G77 -> 8,084,669,000 | H43: =H44+H59+H64+H66+H70+H73+H75+H77 -> 7,867,404,000 | I43: 217,265,000
D44: 급식비 | G44: =SUM(G45:G58) -> 3,922,516,000 | H44: =SUM(H45:H58) -> 3,596,674,000 | I44: 325,842,000
E45: 급식비 | F45: 3월 급식비 | G45: =403500*1070 -> 431,745,000 | H45: 372,844,000 | I45: 58,901,000
E46: 급식비 | F46: 4월 급식비 | G46: 412,485,000 | H46: 364,060,000 | I46: 48,425,000
E47: 급식비 | F47: 5월 급식비 | G47: 416,765,000 | H47: 377,140,000 | I47: 39,625,000
E48: 급식비 | F48: 6월 급식비 | G48: 416,765,000 | H48: 364,060,000 | I48: 52,705,000
E49: 급식비 | F49: 7월 급식비 | G49: 187,785,000 | H49: 196,200,000 | I49: -8,415,000
E50: 급식비 | F50: 여름방학 급식비 | G50: 82,320,000 | H50: 180,000,000 | I50: -97,680,000
E51: 급식비 | F51: 8월 급식비 | G51: 341,865,000 | H51: 196,200,000 | I51: 145,665,000
E52: 급식비 | F52: 9월 급식비 | G52: 385,391,000 | H52: 337,900,000 | I52: 47,491,000
E53: 급식비 | F53: 10월 급식비 | G53: 431,745,000 | H53: 377,140,000 | I53: 54,605,000
E54: 급식비 | F54: 11월 급식비 | G54: 363,265,000 | H54: 364,060,000 | I54: -795,000
E55: 급식비 | F55: 12월 급식비 | G55: 316,110,000 | H55: 300,840,000 | I55: 15,270,000
E56: 급식비 | F56: 겨울방학 급식비 | G56: 91,000,000 | H56: 105,000,000 | I56: -14,000,000
E57: 급식비 | F57: 2월 급식비 | G57: 45,275,000 | H57: 43,320,000 | I57: 1,955,000
E58: 지난년도급식비 | F58: 지난년도급식비 | G58: 0 | H58: 17,910,000 | I58: -17,910,000 | J58: 지난년도 이월수입
D59: 방과후학교교육활동비 | G59: =SUM(G60:G63) -> 1,100,049,000 | H59: =SUM(H60:H63) -> 1,000,000,000 | I59: 100,049,000
E60: 방과후학교교육활동비 | F60: 1학기 특기적성비 | G60: 469,409,000 | H60: 420,000,000 | I60: =G60-H60 -> 49,409,000
E61: 방과후학교교육활동비 | F61: 여름방학 특기적성비 | G61: =84000000+7000000 -> 91,000,000 | H61: 150,000,000 | I61: =G61-H61 -> -59,000,000
E62: 방과후학교교육활동비 | F62: 2학기 특기적성비 | G62: 487,140,000 | H62: 370,000,000 | I62: 117,140,000
E63: 방과후학교교육활동비 | F63: 겨울방학 특기적성비 | G63: =52000000+500000 -> 52,500,000 | H63: 60,000,000 | I63: -7,500,000
D64: 방과후학교교육활동비 | G64: =SUM(G65) -> 0 | H64: =SUM(H65) -> 9,300,000 | I64: -9,300,000
E65: 지난년도방과후학교교육활동비 | F65: 지난년도방과후학교교육활동비 | G65: 0 | H65: 9,300,000 | I65: =G65-H65 -> -9,300,000 | J65: 지난년도 이월수입
D66: 현장체험학습비 | G66: =SUM(G67:G69) -> 158,510,000 | H66: =SUM(H67:H69) -> 147,270,000 | I66: 11,240,000
E67: 현장체험학습비 | F67: 1학년 수학여행비 | G67: 153,510,000 | H67: 141,510,000 | I67: =G67-H67 -> 12,000,000 | J67: 357명*430,000원
E68: 현장체험학습비 | F68: 2학년 현장체험학습비 | G68: 5,000,000 | H68: 5,000,000 | I68: =G68-H68 -> 0 | J68: 2학년 현장체험학습 차량임차료
E69: 지난년도현장체험학습비 | F69: 지난년도현장체험학습비 | G69: 0 | H69: 760,000 | I69: -760,000 | J69: 지난년도 이월수입
D70: 수련활동비 | G70: =SUM(G71:G72) -> 60,000,000 | H70: =SUM(H71:H72) -> 57,130,000 | I70: 2,870,000
E71: 수련활동비 | F71: 2학년 수련학습 활동비 | G71: 60,000,000 | H71: 57,000,000 | I71: =G71-H71 -> 3,000,000 | J71: 수련회비 및 차량임차료
E72: 지난년도수련활동비 | F72: 지난년도수련활동비 | G72: 0 | H72: 130,000 | I72: =G72-H72 -> -130,000 | J72: 지난년도 이월수입
D73: 졸업앨범대금 | G73: =SUM(G74) -> 24,500,000 | H73: =SUM(H74) -> 23,920,000 | I73: 580,000
E74: 졸업앨범대금 | F74: 졸업앨범대금 | G74: 24,500,000 | H74: =65000*368 -> 23,920,000 | I74: =G74-H74 -> 580,000
D75: 교과서대금 | G75: =SUM(G76) -> 56,550,000 | H75: =SUM(H76) -> 56,550,000 | I75: 0
E76: 교과서대금 | F76: 교과서대금 | G76: 56,550,000 | H76: 56,550,000 | I76: =G76-H76 -> 0
D77: 기숙사비 | G77: =SUM(G78:G91) -> 2,762,544,000 | H77: =SUM(H78:H91) -> 2,976,560,000 | I77: -214,016,000
E78: 기숙사비 | F78: 3월 기숙사비 | G78: 299,600,000 | H78: 305,200,000 | I78: -5,600,000
E79: 기숙사비 | F79: 4월 기숙사비 | G79: 299,600,000 | H79: 305,200,000 | I79: -5,600,000
E80: 기숙사비 | F80: 5월 기숙사비 | G80: 299,600,000 | H80: 305,200,000 | I80: -5,600,000
E81: 기숙사비 | F81: 6월 기숙사비 | G81: 299,600,000 | H81: 305,200,000 | I81: -5,600,000
E82: 기숙사비 | F82: 7월 기숙사비 | G82: 115,966,000 | H82: 147,600,000 | I82: -31,634,000
E83: 기숙사비 | F83: 여름방학 기숙사비 | G83: 53,109,000 | H83: 168,000,000 | I83: -114,891,000
E84: 기숙사비 | F84: 8월 기숙사비 | G84: 241,606,000 | H84: 147,600,000 | I84: 94,006,000
E85: 기숙사비 | F85: 9월 기숙사비 | G85: 299,600,000 | H85: 305,200,000 | I85: -5,600,000
E86: 기숙사비 | F86: 10월 기숙사비 | G86: 299,600,000 | H86: 305,200,000 | I86: =G86-H86 -> -5,600,000
E87: 기숙사비 | F87: 11월 기숙사비 | G87: 259,932,000 | H87: 305,200,000 | I87: -45,268,000
E88: 기숙사비 | F88: 12월 기숙사비 | G88: 199,973,000 | H88: 226,400,000 | I88: -26,427,000
E89: 기숙사비 | F89: 겨울방학 기숙사비 | G89: 58,708,000 | H89: 98,000,000 | I89: -39,292,000
E90: 기숙사비 | F90: 2월 기숙사비 | G90: 35,650,000 | H90: 36,100,000 | I90: -450,000
E91: 지난년도기숙사비 | F91: 지난년도기숙사비 | G91: 0 | H91: 16,460,000 | I91: -16,460,000 | J91: 지난년도 이월수입
B92: 지원금수입 | G92: =G93 -> 0 | H92: =H93 -> 394,350,000 | I92: -394,350,000
C93: 학부모부담지원금수입 | G93: =G94+G96+G98 -> 0 | H93: =H94+H96+H98 -> 394,350,000 | I93: -394,350,000
D94: 급식지원금수입 | G94: =SUM(G95) -> 0 | H94: =SUM(H95) -> 31,500,000 | I94: -31,500,000 | J94: 예산 편성 지침에 의거 예산 미편성(결산에 포함)
E95: 급식지원금수입 | F95: 저소득층 학교 급식비 | G95: 0 | H95: 31,500,000 | I95: =G95-H95 -> -31,500,000
D96: 방과후학교활동지원금수입 | G96: =SUM(G97) -> 0 | H96: =SUM(H97) -> 86,600,000 | I96: -86,600,000
E97: 방과후학교활동지원금수입 | F97: 사회적배려대상 방과후학교 교육비 | G97: 0 | H97: 86,600,000 | I97: =G97-H97 -> -86,600,000
D98: 기타학부모부담지원금수입 | G98: =SUM(G99:G104) -> 0 | H98: =SUM(H99:H104) -> 276,250,000 | I98: -276,250,000
E99: 기타학부모부담지원금수입 | F99: 저소득층 학비 지원금 | G99: 0 | H99: 160,900,000 | I99: =G99-H99 -> -160,900,000
E100: 기타학부모부담지원금수입 | F100: 저소득층 정보화PC 지원금 | G100: 0 | H100: 1,250,000 | I100: =G100-H100 -> -1,250,000
E101: 기타학부모부담지원금수입 | F101: 사회적배려대상 기숙사비 | G101: 0 | H101: 100,600,000 | I101: -100,600,000
E102: 기타학부모부담지원금수입 | F102: 사회적배려대상 체험학습비 | G102: 0 | H102: 13,320,000 | I102: -13,320,000
E103: 기타학부모부담지원금수입 | F103: 교과서 무상지원 | G103: 0 | H103: 120,000 | I103: -120,000
E104: 기타학부모부담지원금수입 | F104: 특수교육대상학생 교통비 | G104: 0 | H104: 60,000 | I104: -60,000
B105: 행정활동수입 | G105: =G106+G116+G119 -> 487,656,000 | H105: =H106+H116+H119 -> 724,896,000 | I105: -237,240,000
C106: 사용료및수수료 | G106: =G107 -> 407,856,000 | H106: =H107 -> 471,556,000 | I106: -63,700,000
D107: 사용료및수수료 | G107: =SUM(G108:G115) -> 407,856,000 | H107: =SUM(H108:H115) -> 471,556,000 | I107: -63,700,000
E108: 사용료 | F108: 임대료 (기숙사 등) | G108: 125,000,000 | H108: =185700000+3000000 -> 188,700,000 | I108: =G108-H108 -> -63,700,000 | J108: 기숙사 임대료 수입 감소
E109: 수수료 | F109: 신입생 전형료 | G109: =25600000+14000000 -> 39,600,000 | H109: =25600000+14000000 -> 39,600,000 | I109: =G109-H109 -> 0
E110: 수수료 | F110: 전.편입 전형료 | G110: 11,000,000 | H110: 11,000,000 | I110: 0
E111: 수수료 | F111: 제증명수수료 | G111: 200,000 | H111: 200,000 | I111: 0
E112: 수수료 | F112: AP 시험비용 | G112: 156,256,000 | H112: =155530000+726000 -> 156,256,000 | I112: 0
E113: 수수료 | F113: PSAT 시험비용 | G113: 12,000,000 | H113: 12,000,000 | I113: 0
E114: 수수료 | F114: 모의고사비용 | G114: 35,000,000 | H114: 35,000,000 | I114: 0
E115: 수수료 | F115: 영어토론대회 참가비 | G115: 28,800,000 | H115: 28,800,000 | I115: 0
C116: 자산수입 | G116: =G117 -> 0 | H116: =H117 -> 17,160,000 | I116: -17,160,000
D117: 자산매각대 | G117: =SUM(G118) -> 0 | H117: =SUM(H118) -> 17,160,000 | I117: -17,160,000
E118: 자산매각대 | F118: 불용품(PC) 매각수입 | G118: 0 | H118: 17,160,000 | I118: =G118-H118 -> -17,160,000
C119: 기타행정활동수입 | G119: =G120+G124 -> 79,800,000 | H119: =H120+H124 -> 236,180,000 | I119: -156,380,000
D120: 이자수입 | G120: =SUM(G121:G123) -> 78,000,000 | H120: =SUM(H121:H123) -> 67,000,000 | I120: 11,000,000
E121: 이자수입 | F121: 정기예금 | G121: 60,000,000 | H121: 60,000,000 | I121: =G121-H121 -> 0
E122: 이자수입 | F122: 일반예금 | G122: 7,000,000 | H122: 7,000,000 | I122: 0
E123: 이자수입 | F123: 법인세환급금 | G123: 11,000,000 | H123: 0 | I123: 11,000,000 | J123: 법정부담 전입금 처리(교육청 지침)
D124: 기타행정활동수입 | G124: =SUM(G125:G127) -> 1,800,000 | H124: =SUM(H125:H127) -> 169,180,000 | I124: -167,380,000
E125: 기타행정활동수입 | F125: 교생 교육실습비 | G125: 1,100,000 | H125: 1,100,000 | I125: 0
E126: 기타행정활동수입 | F126: 제증명 우편료 외 | G126: 700,000 | H126: 700,000 | I126: 0
E127: 기타행정활동수입 | F127: 상하수도요금 | G127: 0 | H127: 167,380,000 | I127: -167,380,000
A128: 기타수입 | G128: =G129+G194+G209+G217+G223 -> 500,000,000 | H128: =H129+H194+H209+H217+H223 -> 724,300,000 | I128: -224,300,000
B129: 전년도이월금 | G129: =G130+G146+G172+G175+G178+G181+G188+G191 -> 500,000,000 | H129: =H130+H146+H172+H175+H178+H181+H188+H191 -> 724,300,000 | I129: -224,300,000
C130: 이월금 | G130: =G131 -> 500,000,000 | H130: =H131 -> 724,300,000 | I130: -224,300,000
D131: 순세계잉여금 | G131: =SUM(G132) -> 500,000,000 | H131: =SUM(H132) -> 724,300,000 | I131: -224,300,000
E132: 순세계잉여금 | F132: 전년도이월금 | G132: 500,000,000 | H132: 724,300,000 | I132: =G132-H132 -> -224,300,000
A133: 합 계 | G133: =G128+G24+G5 -> 15,008,275,000 | H133: =H128+H24+H5 -> 15,517,610,000 | I133: (509,335,000)

Sheet 2012학년도 세출예산 명세서
J2: (단위:원)
A3: 사업 | F3: 산출내역 | G3: 2012학년도 예산 | H3: 2011학년도 예산 | I3: 증 △ 감 | J3: 적요
A4: 정책 | B4: 단위 | C4: 세부 | D4: 항목 | E4: 원가통계비목
A5: 인적자원 운영 | G5: =G6+G34+G55+G84 -> 4,483,087,000 | H5: =H6+H34+H55+H84 -> 4,316,951,000 | I5: 166,136,000
B6: 교원보수 | G6: =G7 -> 3,539,963,000 | H6: =H7 -> 3,440,515,000 | I6: 99,448,000
C7: 교원 보수 | G7: =G8+G29 -> 3,539,963,000 | H7: =H8+H29 -> 3,440,515,000 | I7: 99,448,000
D8: 보수 | G8: =SUM(G9:G28) -> 3,289,403,000 | H8: =SUM(H9:H28) -> 3,189,955,000 | I8: 99,448,000
E9: 봉급 | F9: 봉급 | G9: 1,662,633,000 | H9: 1,595,000,000 | I9: =G9-H9 -> 67,633,000
E10: 정근수당 | F10: 정근수당 | G10: 137,666,000 | H10: 127,000,000 | I10: 10,666,000
E11: 정근수당 | F11: 정근수당 가산금 | G11: 43,580,000 | H11: 50,000,000 | I11: -6,420,000
E12: 성과상여금 | F12: 성과상여금 | G12: 154,100,000 | H12: 170,000,000 | I12: -15,900,000
E13: 가족수당 | F13: 가족수당 | G13: 41,160,000 | H13: 39,240,000 | I13: 1,920,000
E14: 자녀학비보조수당 | F14: 자녀학비보조수당 | G14: 19,921,000 | H14: 17,100,000 | I14: 2,821,000
E15: 육아휴직수당 | F15: 육아휴직수당 | G15: 11,698,000 | H15: 2,375,000 | I15: 9,323,000
E16: 교원보전수당 | F16: 교원보전수당 | G16: 910,000 | H16: 960,000 | I16: -50,000
E17: 교직수당 | F17: 교직수당 | G17: 147,000,000 | H17: 153,000,000 | I17: -6,000,000
E18: 교직수당가산금2 | F18: 보직수당 | G18: 6,720,000 | H18: 6,720,000 | I18: 0
E19: 교직수당가산금4 | F19: 담임수당 | G19: 39,600,000 | H19: 39,600,000 | I19: 0
E20: 교직수당가산금6 | F20: 보건활동수당 | G20: 360,000 | H20: 360,000 | I20: 0
E21: 국제전문직위수당 | F21: 국제화영재교육수당 | G21: 665,065,000 | H21: 638,000,000 | I21: 27,065,000
E22: 시간외근무수당 | F22: 초과근무수당 정액분 | G22: 51,122,000 | H22: 45,500,000 | I22: 5,622,000
E23: 시간외근무수당 | F23: 초과근무수당 초과분 | G23: 25,000,000 | H23: 25,000,000 | I23: 0
E24: 관리업무수당 | F24: 관리업무수당 | G24: 5,348,000 | H24: 4,800,000 | I24: 548,000
E25: 교직수당가산금2 | F25: 보직수당 | G25: 30,000,000 | H25: 30,000,000 | I25: 0
E26: 직급보조비 | F26: 직급보조비 | G26: 3,380,000 | H26: 7,800,000 | I26: -4,420,000
E27: 정액급식비 | F27: 정액급식비 | G27: 76,440,000 | H27: 78,000,000 | I27: -1,560,000
E28: 명절휴가비 | F28: 명절휴가비 | G28: 167,700,000 | H28: 159,500,000 | I28: 8,200,000
D29: 법정부담금 | G29: =SUM(G30:G33) -> 250,560,000 | H29: =SUM(H30:H33) -> 250,560,000 | I29: 0
E30: 교직원법정부담금 | F30: 교원사학연금 | G30: 172,280,000 | H30: 172,280,000 | I30: =G30-H30 -> 0
E31: 교직원법정부담금 | F31: 교원재해보상금 | G31: 12,960,000 | H31: 12,960,000 | I31: =G31-H31 -> 0
E32: 교직원법정부담금 | F32: 교원건강보험료 | G32: 61,000,000 | H32: 61,000,000 | I32: 0
E33: 교직원법정부담금 | F33: 교원노인장기요양보험료 | G33: 4,320,000 | H33: 4,320,000 | I33: 0
B34: 직원보수 | G34: =G35 -> 284,887,000 | H34: =H35 -> 273,622,000 | I34: 11,265,000
C35: 직원보수 | G35: =G36+G50 -> 284,887,000 | H35: =H36+H50 -> 273,622,000 | I35: 11,265,000
D36: 보수 | G36: =SUM(G37:G49) -> 257,347,000 | H36: =SUM(H37:H49) -> 246,082,000 | I36: 11,265,000
E37: 봉급 | F37: 봉급 | G37: 129,599,000 | H37: 124,200,000 | I37: =G37-H37 -> 5,399,000
E38: 정근수당 | F38: 정근수당 | G38: 10,833,000 | H38: 11,500,000 | I38: -667,000
E39: 정근수당 | F39: 정근수당 가산금 | G39: 3,480,000 | H39: 3,750,000 | I39: -270,000
E40: 성과상여금 | F40: 성과상여금 | G40: 13,100,000 | H40: 7,800,000 | I40: 5,300,000
E41: 가족수당 | F41: 가족수당 | G41: 3,120,000 | H41: 3,120,000 | I41: 0
E42: 자녀학비보조수당 | F42: 자녀학비보조수당 | G42: 3,622,000 | H42: 2,600,000 | I42: 1,022,000
E43: 국제전문직위수당 | F43: 국제화영재교육수당 | G43: 51,840,000 | H43: 49,680,000 | I43: 2,160,000
E44: 시간외근무수당 | F44: 초과근무수당 정액분 | G44: 4,377,000 | H44: 4,072,000 | I44: 305,000
E45: 직책수당 | F45: 보직수당 | G45: 7,200,000 | H45: 7,200,000 | I45: 0
E46: 정액급식비 | F46: 정액급식비 | G46: 6,240,000 | H46: 6,240,000 | I46: 0
E47: 명절휴가비 | F47: 명절휴가비 | G47: 13,030,000 | H47: 12,420,000 | I47: 610,000
E48: 연가보상비 | F48: 연가보상비 | G48: 3,106,000 | H48: 5,700,000 | I48: -2,594,000
E49: 직급보조비 | F49: 직급보조비 | G49: 7,800,000 | H49: 7,800,000 | I49: 0
D50: 법정부담금 | G50: =SUM(G51:G54) -> 27,540,000 | H50: =SUM(H51:H54) -> 27,540,000 | I50: 0
E51: 교직원법정부담금 | F51: 직원사학연금 | G51: 21,000,000 | H51: 21,000,000 | I51: =G51-H51 -> 0
E52: 교직원법정부담금 | F52: 직원재해보상금 | G52: 1,520,000 | H52: 1,520,000 | I52: =G52-H52 -> 0
E53: 교직원법정부담금 | F53: 직원건강보험료 | G53: 4,670,000 | H53: 4,670,000 | I53: 0
E54: 교직원법정부담금 | F54: 직원노인장기요양보험료 | G54: 350,000 | H54: 350,000 | I54: 0
B55: 교직원기타보수 | G55: =G56+G79 -> 498,037,000 | H55: =H56+H79 -> 445,314,000 | I55: 52,723,000
C56: 교직원대체인건비 | G56: =G57+G59+G66+G70 -> 458,977,000 | H56: =H57+H59+H66+H70 -> 406,114,000 | I56: 52,863,000
D57: 기타직보수 | G57: =SUM(G58) -> 284,837,000 | H57: =SUM(H58) -> 199,000,000 | I57: 85,837,000
E58: 계약직교원인건비 | F58: 기간제교사 인건비 | G58: 284,837,000 | H58: 199,000,000 | I58: =G58-H58 -> 85,837,000
D59: 법정부담금 | G59: =SUM(G60:G65) -> 45,020,000 | H59: =SUM(H60:H65) -> 41,870,000 | I59: 3,150,000
E60: 기타직법정부담금 | F60: 기간제 국민연금 | G60: 12,820,000 | H60: 9,000,000 | I60: =G60-H60 -> 3,820,000
E61: 기타직법정부담금 | F61: 기간제 건강보험료 | G61: 4,960,000 | H61: 5,300,000 | I61: -340,000
E62: 기타직법정부담금 | F62: 기간제 산재보험료 | G62: 1,600,000 | H62: 2,300,000 | I62: -700,000
E63: 기타직법정부담금 | F63: 기간제 고용보험료 | G63: 1,570,000 | H63: 4,800,000 | I63: -3,230,000
E64: 기타직법정부담금 | F64: 기간제 퇴직금 | G64: 23,740,000 | H64: 20,100,000 | I64: 3,640,000
E65: 기타직법정부담금 | F65: 기간제 노인장기요양보험료 | G65: 330,000 | H65: 370,000 | I65: -40,000
D66: 기간제근로자보수 | G66: =SUM(G67:G69) -> 111,480,000 | H66: =SUM(H67:H69) -> 156,380,000 | I66: -44,900,000
E67: 기간제근로자인건비 | F67: 임시직 인건비 | G67: 35,000,000 | H67: 46,880,000 | I67: =G67-H67 -> -11,880,000
E68: 기간제근로자인건비 | F68: 교무지원인건비 | G68: =54670000+1580000 -> 56,250,000 | H68: 90,000,000 | I68: =G68-H68 -> -33,750,000
E69: 기간제근로자인건비 | F69: 비정규직인건비 | G69: 20,230,000 | H69: 19,500,000 | I69: 730,000
D70: 법정부담금 | G70: =SUM(G71:G76) -> 17,640,000 | H70: =SUM(H71:H76) -> 8,864,000 | I70: 8,776,000
E71: 기간제법정부담금 | F71: 국민연금 | G71: 5,020,000 | H71: 2,845,000 | I71: =G71-H71 -> 2,175,000
E72: 기간제법정부담금 | F72: 건강보험료 | G72: 1,940,000 | H72: 1,101,000 | I72: 839,000
E73: 기간제법정부담금 | F73: 산재보험료 | G73: 630,000 | H73: 627,000 | I73: 3,000
E74: 기간제법정부담금 | F74: 고용보험료 | G74: 620,000 | H74: 1,395,000 | I74: -775,000
E75: 기간제법정부담금 | F75: 퇴직급여 | G75: 9,300,000 | H75: 2,810,000 | I75: 6,490,000
E76: 기간제법정부담금 | F76: 노인장기요양보험료 | G76: 130,000 | H76: 86,000 | I76: 44,000
D77: 일반운영비 | G77: =SUM(G78) -> 1,425,000 | H77: =SUM(H78) -> 0 | I77: =SUM(I78) -> 1,425,000
E78: 맞춤형복지비 | F78: 선택적 복리후생지원 | G78: 1,425,000 | H78: 0 | I78: =G78-H78 -> 1,425,000
C79: 학교운영지원비수당 | G79: =G80 -> 39,060,000 | H79: =H80 -> 39,200,000 | I79: -140,000
D80: 학교운영지원비수당 | G80: =SUM(G81:G83) -> 39,060,000 | H80: =SUM(H81:H83) -> 39,200,000 | I80: -140,000
E81: 학교운영지원비수당 | F81: 교원연구비 | G81: =29400000+5880000+1080000 -> 36,360,000 | H81: 36,500,000 | I81: =G81-H81 -> -140,000 | J81: 교원수당
E82: 직책수당 | F82: 직책수당 | G82: 240,000 | H82: 240,000 | I82: =G82-H82 -> 0 | J82: 직원수당
E83: 관리수당 | F83: 관리수당 | G83: 2,460,000 | H83: 2,460,000 | I83: 0 | J83: 직원수당
B84: 교직원 복지 및 역량강화 | G84: =G85+G91+G105 -> 160,200,000 | H84: =H85+H91+H105 -> 157,500,000 | I84: 2,700,000
C85: 교직원연수 | G85: =G86 -> 35,200,000 | H85: =H86 -> 36,500,000 | I85: -1,300,000
D86: 일반운영비 | G86: =SUM(G87:G90) -> 35,200,000 | H86: =SUM(H87:H90) -> 36,500,000 | I86: -1,300,000
E87: 교직원복지비 | F87: 교직원 연수 운영경비 | G87: 20,000,000 | H87: 20,000,000 | I87: =G87-H87 -> 0
E88: 교직원복지비 | F88: 자격연수 여비 | G88: 0 | H88: 1,300,000 | I88: =G88-H88 -> -1,300,000
E89: 교직원복지비 | F89: 연수참가 경비 및 등록비 | G89: 200,000 | H89: 200,000 | I89: 0
E90: 여비 | F90: 근거리출장비 | G90: 15,000,000 | H90: 15,000,000 | I90: 0
C91: 교직원복지 | G91: =G92 -> 88,000,000 | H91: =H92 -> 87,000,000 | I91: 1,000,000
D92: 일반운영비 | G92: =SUM(G93:G104) -> 88,000,000 | H92: =SUM(H93:H104) -> 87,000,000 | I92: 1,000,000
E93: 교직원복지비 | F93: 교무학사부 운영경비 | G93: 2,200,000 | H93: 2,200,000 | I93: =G93-H93 -> 0
E94: 교직원복지비 | F94: 인성계발부 운영경비 | G94: 1,600,000 | H94: 1,600,000 | I94: 0
E95: 교직원복지비 | F95: 기획연구부 운영경비 | G95: 800,000 | H95: 800,000 | I95: 0
E96: 교직원복지비 | F96: 국제부 운영경비 | G96: 2,400,000 | H96: 2,400,000 | I96: 0
E97: 교직원복지비 | F97: 입학관리부 운영경비 | G97: 1,400,000 | H97: 1,400,000 | I97: 0
E98: 교직원복지비 | F98: 1학년부 운영경비 | G98: 1,200,000 | H98: 1,200,000 | I98: 0
E99: 교직원복지비 | F99: 2학년부 운영경비 | G99: 1,400,000 | H99: 1,400,000 | I99: 0
E100: 교직원복지비 | F100: 3학년부 운영경비 | G100: 1,400,000 | H100: 1,400,000 | I100: 0
E101: 교직원복지비 | F101: 행정실 운영경비 | G101: 2,600,000 | H101: 2,600,000 | I101: 0
E102: 교직원복지비 | F102: 기본특근매식비 | G102: 28,000,000 | H102: 28,000,000 | I102: 0
E103: 교직원복지비 | F103: 교직원건강검사진단비 | G103: 25,000,000 | H103: 24,000,000 | I103: 1,000,000
E104: 교직원복지비 | F104: 교원 성과 포상금 | G104: 20,000,000 | H104: 20,000,000 | I104: 0
C105: 맞춤형복지 | G105: =G106 -> 37,000,000 | H105: =H106 -> 34,000,000 | I105: 3,000,000
D106: 일반운영비 | G106: =SUM(G107) -> 37,000,000 | H106: =SUM(H107) -> 34,000,000 | I106: 3,000,000
E107: 맞춤형복지비 | F107: 선택적 복리후생지원 | G107: 37,000,000 | H107: 34,000,000 | I107: =G107-H107 -> 3,000,000
A108: 학생복지/교육격차 해소 | G108: =G109+G113+G164+G181+G194+G199 -> 6,933,460,000 | H108: =H109+H113+H164+H181+H194+H199 -> 7,220,475,000 | I108: -287,015,000
B109: 급식 관리 | G109: =G110 -> 3,922,516,000 | H109: =H110 -> 3,578,764,000 | I109: 343,752,000
C110: 위탁급식운영 | G110: =G111 -> 3,922,516,000 | H110: 3,578,764,000 | I110: 343,752,000
D111: 일반운영비 | G111: =SUM(G112) -> 3,922,516,000 | H111: =SUM(H112) -> 3,578,764,000 | I111: 343,752,000
E112: 급식용식재료비 | F112: 급식사업위탁용역비 | G112: 3,922,516,000 | H112: 3,578,764,000 | I112: =G112-H112 -> 343,752,000
B113: 기숙사 관리 | G113: =G114 -> 2,762,544,000 | H113: =H114 -> 2,960,100,000 | I113: -197,556,000
C114: 기숙사운영 | G114: =G115+G117+G124+G126+G156+G162 -> 2,762,544,000 | H114: =H115+H117+H124+H126+H156+H162 -> 2,960,100,000 | I114: -197,556,000
D115: 기간제근로자보수 | G115: =SUM(G116) -> 545,009,000 | H115: =SUM(H116) -> 532,030,000 | I115: 12,979,000
E116: 기간제근로자인건비 | F116: 생활지도교사 인건비 | G116: =550650000-641000-5000000 -> 545,009,000 | H116: 532,030,000 | I116: =G116-H116 -> 12,979,000
D117: 법정부담금 | G117: =SUM(G118:G123) -> 86,277,000 | H117: =SUM(H118:H123) -> 90,570,000 | I117: -4,293,000
E118: 기간제법정부담금 | F118: 생활지도교사 국민연금 | G118: 24,520,000 | H118: 20,000,000 | I118: =G118-H118 -> 4,520,000
E119: 기간제법정부담금 | F119: 생활지도교사 건강보험료 | G119: 9,590,000 | H119: 8,100,000 | I119: 1,490,000
E120: 기간제법정부담금 | F120: 생활지도교사 산재보험료 | G120: 3,090,000 | H120: 3,950,000 | I120: -860,000
E121: 기간제법정부담금 | F121: 생활지도교사 고용보험료 | G121: 3,030,000 | H121: 7,950,000 | I121: -4,920,000
E122: 기간제법정부담금 | F122: 생활지도교사 노인장기요양보험료 | G122: 630,000 | H122: 520,000 | I122: 110,000
E123: 기간제법정부담금 | F123: 생활지도교사 퇴직급여 | G123: 45,417,000 | H123: 50,050,000 | I123: -4,633,000
D124: 일반운영비 | G124: =SUM(G125) -> 1,325,000 | H124: =SUM(H125) -> 0 | I124: 1,325,000
E125: 맞춤형복지비 | F125: 선택적 복리후생지원 | G125: 1,325,000 | H125: 0 | I125: =G125-H125 -> 1,325,000
D126: 일반운영비 | G126: =SUM(G127:G155) -> 1,928,533,000 | H126: =SUM(H127:H155) -> 2,139,100,000 | I126: -210,567,000
E127: 일반수용비 | F127: 기숙사 소모품 구입비 | G127: 5,000,000 | H127: 10,000,000 | I127: =G127-H127 -> -5,000,000
E128: 일반수용비 | F128: 신입생 자료집 제작비 | G128: 2,000,000 | H128: 2,000,000 | I128: =G128-H128 -> 0
E129: 일반수용비 | F129: 신문구독료 | G129: 90,000,000 | H129: 90,000,000 | I129: 0
E130: 일반수용비 | F130: 건물외벽청소비 | G130: 3,000,000 | H130: 0 | I130: 3,000,000 | J130: 건물외벽청소비
E131: 일반수용비 | F131: 정수기 수질검사 수수료 | G131: 3,600,000 | H131: 3,600,000 | I131: 0
E132: 일반수용비 | F132: 기숙사 시설 안전검사비 | G132: 3,000,000 | H132: 3,000,000 | I132: 0
E133: 일반수용비 | F133: 기숙사 침구류 구입비 | G133: 5,000,000 | H133: 10,000,000 | I133: -5,000,000
E134: 일반수용비 | F134: 교복 및 침구류 린넨서비스 용역비 | G134: 100,000,000 | H134: 150,000,000 | I134: -50,000,000
E135: 일반수용비 | F135: 기숙사 시설물 수선비 | G135: =86000000-5867000 -> 80,133,000 | H135: =115000000+40000000 -> 155,000,000 | I135: -74,867,000 | J135: EHP 수선비 외
E136: 일반수용비 | F136: 집기비품 수리비 | G136: 5,000,000 | H136: 10,000,000 | I136: -5,000,000
E137: 일반수용비 | F137: 기자재 수선비 | G137: 10,000,000 | H137: 10,000,000 | I137: 0
E138: 일반수용비 | F138: 시설관리 소모품 구입비 | G138: 25,000,000 | H138: 70,000,000 | I138: -45,000,000
E139: 일반수용비 | F139: 정화조 관리위탁비 | G139: 5,000,000 | H139: 30,000,000 | I139: -25,000,000
E140: 일반수용비 | F140: 정화조 슬러지 청소비 | G140: 15,000,000 | H140: 10,000,000 | I140: 5,000,000 | J140: 정화조 폐쇄 오수처리
E141: 일반수용비 | F141: 승강기 유지보수비 | G141: 7,200,000 | H141: 8,000,000 | I141: -800,000
E142: 일반수용비 | F142: 소방시설 관리위탁비 | G142: 6,000,000 | H142: 6,000,000 | I142: 0
E143: 일반수용비 | F143: 기숙사 경비 용역비 | G143: 96,000,000 | H143: 96,000,000 | I143: 0
E144: 일반수용비 | F144: 기숙사 청소,설비 용역비 | G144: 774,000,000 | H144: 730,000,000 | I144: 44,000,000
E145: 일반수용비 | F145: 기숙사 소독용역비 | G145: 6,000,000 | H145: 7,200,000 | I145: -1,200,000
E146: 일반수용비 | F146: 정수기 관리용역비 | G146: 14,000,000 | H146: 16,000,000 | I146: -2,000,000
E147: 일반수용비 | F147: 건조기 렌탈료 | G147: 3,000,000 | H147: 0 | I147: 3,000,000
E148: 일반업무추진비 | F148: 생활지도교 간당회비 | G148: 3,000,000 | H148: 3,000,000 | I148: 0
E149: 일반업무추진비 | F149: 용역직원 간담회비 | G149: 5,000,000 | H149: 2,000,000 | I149: 3,000,000 | J149: 용역직원 식대 포함
E150: 전기요금 | F150: 전기요금 | G150: 160,000,000 | H150: 200,000,000 | I150: -40,000,000
E151: 상하수도료 | F151: 상하수도 사용료 | G151: =60000000*2 -> 120,000,000 | H151: 70,000,000 | I151: 50,000,000
E152: 연료비 | F152: 도시가스요금 | G152: 330,000,000 | H152: =226000000+154800000 -> 380,800,000 | I152: -50,800,000
E153: 기타공공요금 | F153: 인터넷통신요금 | G153: =3800000*12 -> 45,600,000 | H153: 60,000,000 | I153: -14,400,000
E154: 기타공공요금 | F154: 시설물분 환경개선부담금 | G154: 6,000,000 | H154: 6,000,000 | I154: 0
E155: 여비 | F155: 학생 병원 수송 근거리출장비 | G155: 1,000,000 | H155: 500,000 | I155: 500,000
D156: 교육운영비 | G156: =SUM(G157:G161) -> 198,400,000 | H156: =SUM(H157:H161) -> 198,400,000 | I156: 0
E157: 교육운영비 | F157: 병원 수송 차량 임차료 | G157: 32,400,000 | H157: 32,400,000 | I157: =G157-H157 -> 0
E158: 교육운영비 | F158: 귀가의 날 버스 임차료 | G158: 100,000,000 | H158: 100,000,000 | I158: 0
E159: 학생복지비 | F159: 기숙사 생활복 구입비 | G159: 54,500,000 | H159: =1090*50000 -> 54,500,000 | I159: 0 | J159: 생활복 제작 1,090명*50,000원
E160: 학생복지비 | F160: 약품구입비 | G160: 6,000,000 | H160: 6,000,000 | I160: 0
E161: 학생복지비 | F161: 기숙사안전공제회비 | G161: 5,500,000 | H161: 5,500,000 | I161: 0
D162: 비품구입비 | G162: =G163 -> 3,000,000 | H162: =H163 -> 0 | I162: 3,000,000
E163: 비품구입비 | F163: 집기비품 구입비 | G163: 3,000,000 | H163: 0 | I163: =G163-H163 -> 3,000,000
B164: 보건 관리 | G164: =G165+G168+G175+G178 -> 37,350,000 | H164: =H165+H168+H175+H178 -> 37,750,000 | I164: -400,000
C165: 학생안전관리 | G165: =G166 -> 4,500,000 | H165: =H166 -> 3,900,000 | I165: 600,000
D166: 교육운영비 | G166: =G167 -> 4,500,000 | H166: 3,900,000 | I166: 600,000
E167: 학생복지비 | F167: 학교안전공제회비 | G167: 4,500,000 | H167: 3,900,000 | I167: =G167-H167 -> 600,000
C168: 학생환경위생관리 | G168: =G169 -> 14,850,000 | H168: =H169 -> 15,850,000 | I168: -1,000,000
D169: 일반운영비 | G169: =SUM(G170:G174) -> 14,850,000 | H169: =SUM(H170:H174) -> 15,850,000 | I169: -1,000,000
E170: 일반수용비 | F170: 물탱크 청소비 | G170: 1,300,000 | H170: 1,300,000 | I170: =G170-H170 -> 0
E171: 일반수용비 | F171: 정수기 관리용역비 | G171: 12,000,000 | H171: 13,000,000 | I171: =G171-H171 -> -1,000,000
E172: 일반수용비 | F172: 수질검사 수수료 | G172: 1,000,000 | H172: 1,000,000 | I172: 0
E173: 일반수용비 | F173: 실내공기질 검사비 | G173: 500,000 | H173: 500,000 | I173: 0
E174: 여비 | F174: 학교 위생교육 출장비 | G174: 50,000 | H174: 50,000 | I174: 0
C175: 학생건강관리 | G175: =G176 -> 12,000,000 | H175: =H176 -> 12,000,000 | I175: 0
D176: 교육운영비 | G176: =G177 -> 12,000,000 | H176: 12,000,000 | I176: 0
E177: 학생복지비 | F177: 학생건강검사진단비 | G177: 12,000,000 | H177: 12,000,000 | I177: =G177-H177 -> 0
C178: 보건실운영 | G178: =G179 -> 6,000,000 | H178: =H179 -> 6,000,000 | I178: 0
D179: 교육운영비 | G179: =G180 -> 6,000,000 | H179: 6,000,000 | I179: 0
E180: 학생복지비 | F180: 보건실 약품구입비 | G180: 6,000,000 | H180: 6,000,000 | I180: 0
B181: 교육격차 해소 | G181: =G182+G191 -> 0 | H181: =H182+H191 -> 394,350,000 | I181: -394,350,000
C182: 저소득층자녀지원 | G182: =G183 -> 0 | H182: =H183 -> 394,290,000 | I182: -394,290,000
D183: 교육운영비 | G183: =SUM(G184:G190) -> 0 | H183: =SUM(H184:H190) -> 394,290,000 | I183: -394,290,000
E184: 학생복지비 | F184: 저소득층자녀학비지원 | G184: 0 | H184: 160,900,000 | I184: =G184-H184 -> -160,900,000 | J184: 예산 편성 지침에 의거 예산 미편성(결산에 포함)
E185: 학생복지비 | F185: 방과후학교교육활동비지원 | G185: 0 | H185: 86,600,000 | I185: -86,600,000
E186: 학생복지비 | F186: 현장체험학습비 | G186: 0 | H186: 13,320,000 | I186: -13,320,000
E187: 학생복지비 | F187: 교과서 무상지원 | G187: 0 | H187: 120,000 | I187: -120,000
E188: 학생복지비 | F188: 저소득층자녀급식비지원 | G188: 0 | H188: 31,500,000 | I188: -31,500,000
E189: 학생복지비 | F189: 저소득층자녀인터넷통신비 | G189: 0 | H189: 1,250,000 | I189: -1,250,000
E190: 학생복지비 | F190: 저소득층자녀기숙사지원 | G190: 0 | H190: 100,600,000 | I190: -100,600,000
C191: 특수교육대상자지원 | G191: =G192 -> 0 | H191: =H192 -> 60,000 | I191: -60,000
D192: 교육운영비 | G192: =G193 -> 0 | H192: 60,000 | I192: -60,000
E193: 학생복지비 | F193: 교통비지원 | G193: 0 | H193: 60,000 | I193: =G193-H193 -> -60,000
B194: 학생 장학 지원 | G194: =G195 -> 120,000,000 | H194: =H195 -> 159,041,000 | I194: -39,041,000
C195: 학생장학금지원 | G195: =G196 -> 120,000,000 | H195: 159,041,000 | I195: -39,041,000
D196: 교육운영비 | G196: =SUM(G197:G198) -> 120,000,000 | H196: =SUM(H197:H198) -> 159,041,000 | I196: -39,041,000
E197: 학생복지비 | F197: 도비 장학금 | G197: 0 | H197: 150,000 | I197: =G197-H197 -> -150,000
E198: 학생복지비 | F198: 교내 장학금 | G198: 120,000,000 | H198: =120000000+25000000+6781000+7110000 -> 158,891,000 | I198: =G198-H198 -> -38,891,000 | J198: 외부 장학금 제외
B199: 기타 학생복리 서비스 | G199: =G203+G200+G206 -> 91,050,000 | H199: =H203+H200+H206 -> 90,470,000 | I199: 580,000
C200: 졸업앨범제작 | G200: =G201 -> 24,500,000 | H200: =H201 -> 23,920,000 | I200: 580,000
D201: 교육운영비 | G201: =SUM(G202) -> 24,500,000 | H201: =SUM(H202) -> 23,920,000 | I201: 580,000
... 239 more rows
